Cogmind - Beta 11.1 @@@ ROGUE MODE // 2022.12.10 @ 15:40:24 Player: darlorth Result: Destroyed by D-53 Grenadier with Mini Grenade Launcher Performance ------------- Evolutions (0) 0 Regions Visited (2) 400 Robots Destroyed (19) 95 Value Destroyed (421) 421 Prototype IDs (0) 0 Alien Tech Used (0) 0 Bonus (0) 0 TOTAL SCORE: 916 Bonus ------- None Cogmind --------- Core Integrity 0/250 Matter 283/300 Energy 100/100 System Corruption 0% Temperature Cool (0) Movement Core (50) Location -10/Mines Parts ------- > --- POWER (1) -------- (None) > --- PROPULSION (2) --- (None) > --- UTILITY (2) ------ Signal Interpreter Hacking Suite > --- WEAPON (2) ------- Autogun > --- INVENTORY (5) ---- Heat Sink Visual Processing Unit Sensor Array Datajack Peak State ------------ > --- POWER ------------ Light Nuclear Core > --- PROPULSION ------- Light Treads Light Treads > --- UTILITY ---------- Signal Interpreter Hacking Suite > --- WEAPON ----------- EM Shotgun Autogun > --- INVENTORY -------- Light Treads Heat Sink Visual Processing Unit Sensor Array Datajack [Rating: 13] Favorites ----------- Power Light Ion Engine Engine Light Ion Engine Power Core Light Nuclear Core Propulsion Light Treads Treads Light Treads Utility Hacking Suite Device Heat Sink Processor Signal Interpreter Hackware Hacking Suite Weapon Medium Laser Energy Gun Medium Laser Energy Cannon Beam Cannon Ballistic Gun Autogun Ballistic Cannon Light Cannon Build | -11 -10 -10 ------- Run | Scr Mat Min Slots Evolved . | . . . Power . | . . . Propulsion . | . . . Utility . | . . . Weapon . | . . . Parts Attached 18 | 5 12 1 Power 2 | 1 1 . Engine 1 | 1 . . Core 1 | . 1 . Reactor . | . . . Propulsion 5 | 2 2 1 Treads 5 | 2 2 1 Leg . | . . . Wheel . | . . . Hover . | . . . Flight . | . . . Utility 3 | . 3 . Device 1 | . 1 . Storage . | . . . Processor 1 | . 1 . Hackware 1 | . 1 . Protection . | . . . Artifact . | . . . Weapon 8 | 2 6 . Energy Gun 4 | 2 2 . Energy Cannon 1 | . 1 . Ballistic Gun 2 | . 2 . Ballistic Cannon 1 | . 1 . Launcher . | . . . Special Weapon . | . . . Impact Weapon . | . . . Slashing Weapon . | . . . Piercing Weapon . | . . . Special Melee Weapon . | . . . Unidentified Prototypes . | . . . Parts Lost 7 | . 2 5 Power 2 | . 1 1 Propulsion 3 | . . 3 Utility . | . . . Weapon 2 | . 1 1 Highest Loss Streak 5 | . 2 5 To Critical Strikes . | . . . Average Slot Usage (%) 93 | . 92 98 Engine 6 | . 7 . Core 6 | . 5 13 Treads 28 | . 28 28 Device 8 | . 9 . Processor 4 | . 2 14 Hackware 10 | . 9 14 Energy Gun 13 | . 15 . Energy Cannon 2 | . 3 . Ballistic Gun 4 | . . 27 Ballistic Cannon 7 | . 7 . Naked Turns . | . . . Heaviest Build 12 | 7 12 11 Greatest Support 40 | 40 40 40 Greatest Overweight (x) . | . . . Average Overweight (x) . | . . . Largest Inventory Capacity 5 | 5 5 5 Average Capacity 5 | 5 5 5 Most Carried 5 | 2 5 5 Average Carried 3 | . 3 4 Final Capacity 5 | 5 5 5 Final Carried 5 | . 5 4 Class Distribution -------------------- 81% | Mutant 18% | Scavenger-Mutant Dominant Class ---------------- Mutant | -10/Materials Mutant | -10/Mines Resources | -11 -10 -10 ----------- Run | Scr Mat Min Matter Collected 504 | 234 222 48 Remotely . | . . . Salvage Created 604 | . 517 87 Parts 30 | . 29 1 Haulers Intercepted 2 | . 2 . Recyclers Shooed 1 | . 1 . Parts Field Recycled . | . . . Retrieved Matter . | . . . Parts Self-Destructed . | . . . Prevented . | . . . Kills | -11 -10 -10 ------- Run | Scr Mat Min Combat Hostiles Destroyed 11 | . 9 2 Guns 10 | . 8 2 Cannons 1 | . 1 . Classes Destroyed 6 | . 6 . Hauler 2 | . 2 . Recycler 2 | . 2 . Operator 1 | . 1 . Watcher 3 | . 3 . Swarmer 3 | . 3 . Grunt 8 | . 6 2 Best Kill Streak 5 | . 5 2 Combat Bots Only 3 | . 3 2 Max Kills in Single Turn 1 | . 1 1 Gunslinging . | . . . Exploded . | . . . Melee . | . . . Uniques/NPCs Destroyed . | . . . Combat | -11 -10 -10 -------- Run | Scr Mat Min Damage Taken 1120 | . 471 649 Core 263 | . 77 186 Absorbed by Shields . | . . . Core Remaining (%) 100 | 100 . . Volleys Fired 66 | . 54 12 Largest 2 | . 2 2 Hottest 100 | . 100 46 Shots Fired 127 | . 107 20 Gun 104 | . 84 20 Cannon 23 | . 23 . Launcher . | . . . Special . | . . . Kinetic 44 | . 24 20 Thermal 82 | . 82 . Explosive . | . . . Electromagnetic 1 | . 1 . Robot Hit Streak 23 | . 23 4 Robot Miss Streak 3 | . 2 3 Penetration Max . | . . . Secondary Targets 1 | . 1 . Max Gunslinging Chain 1 | . 1 . Shots Hit Robots 84 | . 73 11 Core Hits 33 | . 28 5 Critical Kills . | . . . Critical Parts Destroyed . | . . . Critical Strikes 4 | . 4 . Burn 4 | . 4 . Melee Attacks . | . . . Impact . | . . . Slashing . | . . . Piercing . | . . . Sneak Attacks . | . . . Combat Hostiles . | . . . Follow-up Attacks . | . . . Damage Inflicted 1182 | . 1005 177 Guns 916 | . 739 177 Cannons 266 | . 266 . Explosions . | . . . Melee . | . . . Ramming . | . . . Kinetic 461 | . 284 177 Thermal 711 | . 711 . Explosive . | . . . Electromagnetic 10 | . 10 . Impact . | . . . Slashing . | . . . Piercing . | . . . Highest Corruption . | . . . Average Corruption . | . . . Corruption Purged . | . . . Corruption Blocked . | . . . Overload Shots . | . . . Overflow Damage . | . . . Projectiles . | . . . Explosions . | . . . Melee . | . . . Knockbacks 7 | . 7 . Impact . | . . . Kinetic 6 | . 6 . Secondary 1 | . 1 . Self-Inflicted Damage . | . . . Shots . | . . . Rammed . | . . . Targets Rammed . | . . . Kicked . | . . . Crushed . | . . . Highest Temperature 201 | . 201 56 Average Temperature 33 | . 34 25 Received Heat Transfer 231 | . 183 48 Siege Activations . | . . . Robots Corrupted . | . . . Combat Hostiles . | . . . Parts Fried . | . . . Impact Corruptions . | . . . Robots Melted . | . . . Combat Hostiles . | . . . Parts Melted 5 | . 5 . Heat Transferred 2405 | . 2405 . Parts Sabotaged . | . . . Parts Stolen . | . . . Parts Stripped . | . . . Power Chain Reactions . | . . . Missiles Intercepted . | . . . Alert | -11 -10 -10 ------- Run | Scr Mat Min Peak Influence 243 | . 243 74 Initial 9 | . . 9 Average 84 | . 91 55 Maximum Alert Level 1 | . 1 . Low Security (%) 89 | 100 88 100 Level 1 10 | . 11 . Level 2 . | . . . Level 3 . | . . . Level 4 . | . . . Level 5 . | . . . High Security . | . . . Max Security . | . . . Squads Dispatched 2 | . 2 . Investigation 1 | . 1 . Extermination . | . . . Reinforcement 1 | . 1 . Assault . | . . . Garrison . | . . . Intercept . | . . . Searches Triggered . | . . . Construction Impeded . | . . . Haulers Reinforced . | . . . Active Scanning Responses . | . . . Cargo Convoy Interrupts . | . . . Stealth | -11 -10 -10 --------- Run | Scr Mat Min Distress Signals 2 | . 2 . Communications Jammed . | . . . Distress Signals . | . . . Times Spotted 23 | . 16 7 Peak Tracking Total 5 | . 5 4 Tactical Retreats . | . . . Traps | -11 -10 -10 ------- Run | Scr Mat Min Traps Triggered 1 | . 1 . Indirectly . | . . . Trap Hack Attempts . | . . . Triggered . | . . . Disarmed . | . . . Reprogrammed . | . . . Reused . | . . . Traps Extracted . | . . . Installed . | . . . Triggered . | . . . Machines | -11 -10 -10 ---------- Run | Scr Mat Min Machines Disabled . | . . . Max in Single Turn . | . . . Machines Sabotaged . | . . . Garrisons Compromised . | . . . Overloaded Fab Kills . | . . . Hacking | -11 -10 -10 --------- Run | Scr Mat Min Machines Accessed 3 | . 3 . Terminals 3 | . 3 . Fabricators . | . . . Repair Stations . | . . . Recycling Units . | . . . Scanalyzers . | . . . Garrison Access . | . . . Total Hacks 10 | . 10 . Successful 1 | . 1 . Failed 9 | . 9 . Catastrophic 1 | . 1 . Database Lockouts . | . . . Manual 10 | . 10 . Terminals 10 | . 10 . Fabricators . | . . . Repair Stations . | . . . Recycling Units . | . . . Scanalyzers . | . . . Garrison Access . | . . . Terminal Hacks 1 | . 1 . Terminal Index 1 | . 1 . Fabricator Hacks . | . . . Repair Station Hacks . | . . . Recycling Unit Hacks . | . . . Scanalyzer . | . . . Garrison Access Hacks . | . . . Unauthorized Hacks . | . . . Terminals . | . . . Fabricators . | . . . Repair Stations . | . . . Recycling Units . | . . . Scanalyzers . | . . . Garrison Access . | . . . Data Cores Recovered . | . . . Used . | . . . Hacking Detections 3 | . 3 . Full Trace Events 1 | . 1 . Feedback Events . | . . . Feedback Blocked . | . . . Robot Schematics Acquired . | . . . Robots Built . | . . . Authchips . | . . . Time . | . . . Total Robot Build Rating . | . . . Part Schematics Acquired . | . . . Parts Built . | . . . Authchips . | . . . Time . | . . . Total Part Build Rating . | . . . Parts Repaired . | . . . Time . | . . . Parts Recycled . | . . . Recycled Matter . | . . . Retrieved Matter . | . . . Retrieved Components . | . . . Parts Scanalyzed . | . . . Part Schematics Acquired . | . . . Parts Damaged . | . . . Bothacking | -11 -10 -10 ------------ Run | Scr Mat Min Used RIF Installer . | . . . Robots Hacked . | . . . Non-combat . | . . . Combat . | . . . Robot Hacks Applied . | . . . Relay Couplers Released . | . . . Fabnet Peak Effective % . | . . . Robots Rewired . | . . . Allies Hacked . | . . . Hacks Repelled . | . . . Allies | -11 -10 -10 -------- Run | Scr Mat Min Total Allies . | . . . Largest Group . | . . . Highest-Rated Group . | . . . Highest-Rated Ally . | . . . Total Orders . | . . . Ally Attacks . | . . . Total Damage . | . . . Kills . | . . . Allies Corrupted . | . . . Allies Melted . | . . . Intel | -11 -10 -10 ------- Run | Scr Mat Min Robot Analysis Total . | . . . Derelict Logs Recovered . | . . . Drone Launches . | . . . Drone Recoveries . | . . . Exploration | -11 -10 -10 ------------- Run | Scr Mat Min Turns Passed 1825 | 61 1552 212 Spaces Moved 1010 | 44 852 114 Core 17 | 17 . . Treads 993 | 27 852 114 Legs . | . . . Wheels . | . . . Hover . | . . . Flight . | . . . Fastest Speed 50 | 50 160 160 Average Speed 158 | 117 160 160 Slowest Speed 160 | 160 160 160 Overloaded Moves . | . . . Propulsion Burnouts . | . . . Robots Hopped . | . . . Cave-ins Triggered . | . . . Exploration Rate (%) 39 | 4 92 21 Regions Visited 2 Branch Regions 1 Pre-discovered Areas . | . . . Known Exits Taken 1 | . 1 . Unknown Exits Taken 1 | 1 . . Scrap Searched . | . . . Spaces Dug . | . . . Terrain Destroyed . | . . . Melee . | . . . Projectile . | . . . AOE . | . . . Terrain Rammed . | . . . Walls Destroyed . | . . . Machines Disabled . | . . . Actions | -11 -10 -10 --------- Run | Scr Mat Min Total 1114 | 53 934 127 Wait . | . . . Move 1008 | 43 851 114 Hop . | . . . Pick Up 14 | 5 9 . Fast Attach 6 | . 6 . Attach 8 | 5 2 1 Detach . | . . . Swap 4 | . 4 . Drop 8 | . 8 . Fire 66 | . 54 12 Melee . | . . . Ram . | . . . Kick . | . . . Crush . | . . . Escape Stasis . | . . . Rewire . | . . . Trap . | . . . Miscellaneous . | . . . Route ------- -11/Scrapyard -10/Materials (discovered 4 exits: *Mat x3 / *Min) -10/Mines (discovered 1 exit: *Mat) History --------- Turn | Location | Event 2 | -11/Scrapyard | Discovered new exit (range 16) 62 | -11/Scrapyard | Entered Materials 306 | -10/Materials | Build established: Mutant 476 | -10/Materials | Discovered new exit (range 8) 709 | -10/Materials | Discovered new exit (range 14) 1168 | -10/Materials | Discovered new exit (range 9) 1259 | -10/Materials | Build established: Scavenger-Mutant 1298 | -10/Materials | Identified exit to Materials 1461 | -10/Materials | Discovered new exit (range 8) 1597 | -10/Materials | Build established: Mutant 1611 | -10/Materials | Identified exit to Mines 1614 | -10/Materials | Entered Mines 1731 | -10/Mines | Discovered exit to Materials (range 9) 1801 | -10/Mines | Assembled infested the area 1815 | -10/Mines | Core integrity fell below 50% 1821 | -10/Mines | Core integrity fell below 20% 1826 | -10/Mines | Destroyed by D-53 Grenadier with Mini Grenade Launcher Last Messages --------------- 01708_ K-01 Serf collects debris. 01731_ EXIT=FOUND: MATERIALS 01732_ K-01 Serf collects debris. 01801_ ALERT: Infestation in the mines, dispatching Demolisher response squad. 01810_ C-30 ARC bursts open, deploying its payload. 01810_ D-53 Grenadier unfolds itself. 01812_ Core Extractor disabled. 01816_ The unstable cave ceiling collapses. 01816_ Lgt. Treads destroyed. 01816_ S-10 Pest destroyed. 01817_ The unstable cave ceiling collapses. 01818_ Lgt. Nuclear Core destroyed. 01818_ as-88986 destroyed. 01818_ Autogun destroyed. 01820_ D-53 Grenadier destroyed. 01823_ Lgt. Treads destroyed. 01824_ The unstable cave ceiling collapses. 01824_ Lgt. Treads destroyed. 01825_ The unstable cave ceiling collapses. 01826_ K-01 Serf collects debris. Map ----- +----------------------------------------------------+ | ?????????????????????????????????????????????????? | | ?????????????????????????????????????????????????? | | ?????????????????????????????????????????????????? | | ?????????????????????????????????????????????????? | | ?????????????????????????????????????????????????? | | ?????????????????????????????????????????????????? | | ?????????????????????????????????????????????????? | | ?????????????????????????????????????????????????? | | ?????????????????????????????????????????????????? | | ?????????????????????????????????????????????????? | | ?????????????????????????????????????????????????? | | ?????????????????????????????????????????????????? | | ?????????????????????????????????????????????????? | | ?????????????????????????????????????????????????? | | ?????????????????????????????????????????????????? | | ?????????????????????????????????????????????????? | | ?????????????????????????????????????????????????? | | ????????????????????????????????#????????????????? | | ????????????????????#?###?###?? #????????????????? | | ????????????????????# ?#T### ###??????????????? | | ????????????????????# # ## #??????????????? | | ?????????????????#### # " " #??????????????? | | ??????????????""%# # "" #??????????????? | | ??????????????""=a " #??????????????? | | ??????????????????# #??????????????? | | ???????????????????# @ "" #??????????????? | | ???????????????????# " #??????????????? | | ???????????????????## d " #??????????????? | | ????????????????????# % #??????????????? | | ??????????????????? # ##k####??????????????? | | ??????????????????############ #?????????????????? | | ??????????????????????????# #?????????????????? | | ??????????????????????????# ## #?????????????????? | | ???????????????????######?# ## #?????????????????? | | ??????????????????## * #?# ## #?????????????????? | | ??????????????????# !### ## #?????????????????? | | ??????????????????# ! ## ## ##????????????##### | | ???????????????????# ## ##???????????# | | ???????????????????## ! #### < ##??????????# | | ????????????????????## ##?# ##?????????# ## | | ?????????????????????####??# ##????????# #? | | ???????????????????????????# ########## #? | | ???????????????????????????## ### ## | | ????????????????????????????####?## | | ??????????????????????????????????## ######## | | ???????????????????????????????????#### ##??????? | | ??????????????????????????????????????####???????? | | ?????????????????????????????????????????????????? | | | | | +----------------------------------------------------+ Best States ------------- Heat Dissipation 35 Energy Generation 14 Energy Capacity 160 Matter Stores 300 Matter Capacity 300 Sight Range 16 Terrain Scan Density 10 Evasion (%) 50 Recoil Reduction 2 Offensive Hacking 10 Item Schematics ----------------- None Robot Schematics ------------------ None Fabricated ------------ Nothing Alien Tech Used ----------------- None Achievements -------------- None Challenges ------------ None Game ------ Seed BottomlessFluxCore Manual? 0 Play Time 00:10:22 Cumulative 286.3 hours Start 2022.12.10 @ 15:31:12 End 2022.12.10 @ 15:40:24 Sessions 1 Manual Loads 0 Difficulty Rogue Special Mode None Game No. 283 Rogue 120 Adventurer 81 Explorer 82 Win Type - Total 19 Types 17/0/2/0/0/0/0/0/0 Lore% 45 Gallery% 75 Achievement% 60 Wizard Run 0 Options --------- ASCII 0 Keyboard 0 Movement Mouse Keybinds 0 Fullscreen 1 Font 12/Tallcaps Map View 83x54 Tactical HUD 1 Map Filters NONE Filters NONE Steam 1 RUN: b9ada65e-dd5f-49cb-a027-aadebc233b30